bitfinex/quotes_BTCUSD_20240623
["timestamp","ask_amount","ask_price","bid_price","bid_amount"]
[1719179313343,1.74460047,63911.0,63910.0,0.317335]
[1719179313547,1.93593087,63911.0,63910.0,0.317335]
[1719179314498,1.93533233,63911.0,63910.0,0.317335]
[1719179314703,1.095647,63889.0,63888.0,0.1677]
[1719179314946,1.47736794,63889.0,63888.0,0.63374476]
[1719179315153,1.3454329,63889.0,63888.0,0.1677]
[1719179315361,1.3454329,63889.0,63888.0,0.3074]
[1719179315758,1.36124928,63889.0,63888.0,0.3074]
[1719179315980,1.36424928,63889.0,63888.0,0.3074]
[1719179316333,1.50213748,63889.0,63888.0,0.3074]
[1719179317305,1.36124928,63889.0,63888.0,0.3074]
[1719179317914,1.36924928,63889.0,63888.0,0.3084]
[1719179318109,1.36924928,63889.0,63888.0,0.3074]
[1719179318110,1.36124928,63889.0,63888.0,0.3074]
[1719179318337,1.36724928,63889.0,63888.0,0.3084]
[1719179318536,1.39024928,63889.0,63888.0,0.3084]
[1719179318740,1.22780671,63889.0,63888.0,0.308335]
[1719179318913,1.70997798,63889.0,63888.0,0.309335]
[1719179319119,1.72097798,63889.0,63888.0,0.310335]
[1719179319857,1.72097798,63889.0,63888.0,0.002935]
[1719179319858,2.45731727,63889.0,63888.0,0.002935]
[1719179320013,2.9037088,63889.0,63888.0,0.002935]
[1719179320211,2.9037088,63889.0,63882.0,0.000935]
[1719179320212,1.17266403,63883.0,63882.0,0.000935]
[1719179320418,1.61271914,63883.0,63882.0,0.000935]
[1719179320689,1.92579114,63883.0,63882.0,0.000935]
[1719179321105,1.87299114,63883.0,63882.0,0.298535]
[1719179321278,2.13708653,63883.0,63882.0,0.000935]
[1719179321496,2.01986114,63883.0,63882.0,0.000935]
[1719179321634,2.02386114,63883.0,63882.0,0.000935]
[1719179321845,2.02872472,63883.0,63882.0,0.000935]
[1719179322257,2.02862962,63883.0,63882.0,0.000935]
[1719179322508,2.14582007,63883.0,63882.0,0.000935]
[1719179323313,2.02862962,63883.0,63882.0,0.000935]
[1719179324237,2.12233532,63883.0,63882.0,0.000935]
[1719179324820,2.27488946,63883.0,63882.0,0.000935]
[1719179325023,2.29831781,63883.0,63882.0,0.000935]
[1719179325201,2.18118376,63883.0,63882.0,0.000935]
[1719179326053,2.02862962,63883.0,63882.0,0.000935]
[1719179326455,2.02862962,63883.0,63876.0,0.000935]
[1719179326456,0.1,63881.0,63876.0,0.000935]
[1719179326651,0.522451,63877.0,63876.0,0.000935]
[1719179326866,1.50631187,63877.0,63876.0,0.000935]
[1719179327041,1.84241287,63877.0,63876.0,0.000935]
[1719179327242,1.91988741,63877.0,63876.0,0.000935]
[1719179328077,1.74455565,63877.0,63876.0,0.000935]
[1719179328274,1.92131176,63877.0,63876.0,0.000935]
[1719179328851,2.09229379,63877.0,63876.0,0.002935]
[1719179329049,2.09229379,63877.0,63876.0,0.004935]
[1719179329277,2.0220624,63877.0,63876.0,0.004935]
[1719179329488,2.0220624,63877.0,63867.0,0.139835]
[1719179329489,1.096007,63868.0,63867.0,0.139835]
[1719179329684,1.1843277,63868.0,63867.0,0.139835]
[1719179330147,1.29157047,63868.0,63867.0,0.139835]
[1719179331180,1.29090757,63868.0,63867.0,0.139835]
[1719179331381,1.29290757,63868.0,63867.0,0.156835]
[1719179331590,1.29067078,63868.0,63867.0,0.156835]
[1719179331802,1.32578938,63868.0,63867.0,0.156835]
[1719179333031,1.32579967,63868.0,63867.0,0.156835]
[1719179337423,1.32520782,63868.0,63867.0,0.323735]
[1719179340508,1.32519136,63868.0,63867.0,0.323735]
[1719179340880,1.29067078,63868.0,63867.0,0.323735]
[1719179341081,1.32519136,63868.0,63867.0,0.323735]
[1719179342882,1.32480694,63868.0,63867.0,0.323735]
[1719179343179,1.29582403,63868.0,63867.0,0.323735]
[1719179343422,1.34862403,63868.0,63867.0,0.323735]
[1719179344382,0.98267903,63868.0,63867.0,0.323735]
[1719179344591,0.1,63880.0,63869.0,0.3052]
[1719179344789,0.1,63880.0,63867.0,0.017935]
[1719179344790,0.0528,63868.0,63867.0,0.017935]
[1719179345272,0.0528,63868.0,63867.0,0.323135]
[1719179345713,0.0528,63868.0,63867.0,0.306135]
[1719179345933,0.313122,63873.0,63868.0,0.3052]
[1719179345934,0.156568,63870.0,63868.0,0.3052]
[1719179346177,0.156568,63870.0,63869.0,0.3052]
[1719179346367,0.005,63880.0,63869.0,0.32808797]
[1719179346582,0.156558,63874.0,63872.0,0.131]
[1719179346777,0.313105,63877.0,63873.0,0.305]
[1719179346890,0.156549,63878.0,63877.0,0.131]
[1719179347089,0.156549,63878.0,63877.0,0.305]
[1719179347352,0.156546,63879.0,63877.0,0.131]
[1719179347554,0.02381637,63882.0,63877.0,0.48463797]
[1719179347555,0.0528,63878.0,63877.0,0.48463797]
[1719179347708,0.0528,63878.0,63877.0,0.32808797]
[1719179347888,0.15654,63882.0,63877.0,0.32808797]
[1719179348094,0.0528,63878.0,63877.0,0.02308797]
[1719179348506,0.0528,63878.0,63877.0,0.18063797]
[1719179348714,0.0528,63878.0,63877.0,0.49193797]
[1719179348923,0.0528,63878.0,63877.0,0.49093797]
[1719179349779,0.16154,63882.0,63878.0,0.3113]
[1719179350047,0.0528,63878.0,63877.0,0.17963797]
[1719179350462,0.0528,63878.0,63877.0,0.48343797]
[1719179350592,0.05365,63878.0,63877.0,0.48343797]
[1719179350947,0.05365,63878.0,63877.0,0.48643797]
[1719179351143,0.05365,63878.0,63877.0,0.48943797]
[1719179351495,0.05365,63878.0,63877.0,0.48343797]
[1719179351700,0.313072,63883.0,63879.0,0.295]
[1719179351898,0.15654,63882.0,63879.0,0.295]
[1719179352138,0.0528,63880.0,63878.0,0.295]
[1719179352345,0.0528,63880.0,63877.0,0.18763797]
[1719179352520,0.0528,63880.0,63878.0,0.295]
[1719179352722,0.001,63878.0,63877.0,0.50103797]
[1719179353156,0.01052547,63878.0,63877.0,0.50103797]
[1719179354245,0.00952547,63878.0,63877.0,0.49303797]
[1719179354487,0.0528,63880.0,63877.0,0.49303797]
[1719179354488,0.0538,63880.0,63878.0,0.006]
[1719179354664,0.0538,63880.0,63879.0,0.2934]
[1719179354863,0.09141666,63880.0,63879.0,0.2934]
[1719179355227,0.03861666,63880.0,63879.0,0.2934]
[1719179355430,0.09141666,63880.0,63879.0,0.2934]
[1719179355571,0.09041666,63880.0,63879.0,0.2934]
[1719179355770,0.09141666,63880.0,63879.0,0.2994]
[1719179356207,0.09241666,63880.0,63879.0,0.3054]
[1719179356612,0.09259899,63880.0,63879.0,0.3054]
[1719179358282,0.03979899,63880.0,63879.0,0.3054]
[1719179358485,0.09259899,63880.0,63879.0,0.3054]
[1719179360272,0.06432547,63880.0,63879.0,0.3054]
[1719179360473,0.09301839,63880.0,63879.0,0.3054]
[1719179362879,0.09304647,63880.0,63879.0,0.3054]
[1719179363911,0.09304647,63880.0,63879.0,0.461945]
[1719179365504,0.09304647,63880.0,63879.0,0.481945]
[1719179365999,0.01152547,63880.0,63879.0,1.79686709]
[1719179366201,0.14055451,63902.0,63879.0,1.79686709]
[1719179366202,0.0468515,63896.0,63895.0,0.51260697]
[1719179366402,0.0468515,63896.0,63888.0,0.2]
[1719179366403,0.51289626,63902.0,63900.0,0.02]
[1719179366608,0.08142619,63901.0,63900.0,0.02]
[1719179367019,0.08142619,63901.0,63900.0,0.176494]
[1719179367245,0.08142619,63901.0,63900.0,0.156494]
[1719179367455,0.02862619,63901.0,63900.0,0.82555997]
[1719179367654,0.09370301,63908.0,63903.0,0.156487]
[1719179367655,0.0468515,63906.0,63903.0,0.156487]
[1719179367770,0.07067306,63908.0,63907.0,0.02]
[1719179368057,0.14766918,63908.0,63907.0,0.02]
[1719179368459,0.20081768,63908.0,63907.0,0.02]
[1719179368979,0.17662156,63908.0,63907.0,0.02]
[1719179369182,0.20081011,63908.0,63907.0,0.02]
[1719179369353,0.20981011,63908.0,63907.0,0.021]
[1719179369570,0.20981011,63908.0,63907.0,0.022]
[1719179369571,0.19262156,63908.0,63907.0,0.022]
[1719179369774,0.11680953,63908.0,63907.0,0.022]
[1719179369934,0.21680953,63908.0,63907.0,0.022]
[1719179372037,0.21660155,63908.0,63907.0,0.022]
[1719179372483,0.03997999,63908.0,63907.0,0.1635]
[1719179372655,0.03997999,63908.0,63907.0,0.319977]
[1719179372896,0.0688,63908.0,63907.0,0.1635]
[1719179373285,0.016,63908.0,63907.0,0.1635]
[1719179373489,0.0688,63908.0,63907.0,0.1635]
[1719179373651,0.07933076,63908.0,63907.0,0.1635]
[1719179374056,0.02653076,63908.0,63907.0,1.14077297]
[1719179374288,0.016,63908.0,63907.0,1.14077297]
[1719179375109,0.009,63908.0,63907.0,1.13977297]
[1719179375518,0.00085,63911.0,63910.0,0.64649797]
[1719179376903,0.00685,63911.0,63910.0,0.64649797]
[1719179377109,0.00685,63911.0,63910.0,0.81799797]
[1719179377918,0.01185,63911.0,63910.0,0.81799797]
[1719179378280,0.01185,63911.0,63910.0,1.13093797]
[1719179385314,0.00685,63911.0,63910.0,1.13093797]
[1719179385705,0.00085,63911.0,63910.0,1.13593797]
[1719179386125,0.00085,63911.0,63910.0,1.14093797]
[1719179392755,0.00085,63911.0,63910.0,0.82799797]
[1719179399990,0.3129,63919.0,63910.0,0.82799797]
[1719179399991,0.29103418,63919.0,63915.0,0.02]
[1719179400195,0.0528,63916.0,63915.0,0.02]
[1719179400410,0.07786812,63916.0,63915.0,0.02]
[1719179400611,0.08845435,63916.0,63915.0,0.02]
[1719179402247,0.08843844,63916.0,63915.0,0.02]
[1719179402842,0.03563844,63916.0,63915.0,0.02]
[1719179403249,0.03863844,63916.0,63915.0,0.02]
[1719179404956,0.03863844,63916.0,63914.0,0.02308797]
[1719179404957,0.19509344,63916.0,63914.0,0.02308797]
[1719179405186,0.02505221,63915.0,63914.0,0.04308797]
[1719179405588,0.03563743,63915.0,63914.0,0.04308797]
[1719179405843,0.03459423,63915.0,63914.0,0.04308797]
[1719179407074,0.01058522,63915.0,63914.0,0.04308797]
[1719179407503,0.03469927,63915.0,63914.0,0.04308797]
[1719179407831,0.03469927,63915.0,63914.0,0.97895805]
[1719179408035,0.03469927,63915.0,63914.0,1.28874909]
[1719179408438,0.0528,63918.0,63917.0,0.489357]
[1719179408644,0.0528,63918.0,63917.0,0.66500609]
[1719179408907,0.0767368,63918.0,63917.0,0.66500609]
[1719179409851,0.07667901,63918.0,63917.0,0.66500609]
[1719179410277,0.07767901,63918.0,63917.0,0.67700609]
[1719179410448,0.02487901,63918.0,63917.0,0.67700609]
[1719179410595,0.07767901,63918.0,63917.0,0.67700609]
[1719179411404,0.07867901,63918.0,63917.0,0.68800609]
[1719179411600,0.07876662,63918.0,63917.0,0.68800609]
[1719179412022,0.02596662,63918.0,63917.0,1.00900609]
[1719179412431,0.07876662,63918.0,63917.0,1.00900609]
[1719179412646,0.02596662,63918.0,63917.0,1.00900609]
[1719179413000,0.07876662,63918.0,63917.0,1.00900609]
[1719179413772,0.02596662,63918.0,63917.0,1.00900609]
[1719179414173,0.07876662,63918.0,63917.0,1.00900609]
[1719179414416,0.07961662,63918.0,63917.0,1.00900609]
[1719179414606,0.08009598,63918.0,63917.0,1.00900609]
[1719179415207,0.05565,63918.0,63917.0,1.00900609]
[1719179415417,0.08010907,63918.0,63917.0,1.00900609]
[1719179416784,0.08010907,63918.0,63917.0,1.32191109]
[1719179416989,0.02730907,63918.0,63917.0,1.32191109]
[1719179417308,0.08010907,63918.0,63917.0,1.32191109]
[1719179417796,0.07969947,63918.0,63917.0,1.32191109]
[1719179418124,0.02689947,63918.0,63917.0,1.32191109]
[1719179421714,0.02638597,63918.0,63917.0,1.32191109]
[1719179423815,0.02626999,63918.0,63917.0,1.32191109]
[1719179424709,0.02626454,63918.0,63917.0,1.32191109]
[1719179426117,0.02626454,63918.0,63917.0,1.14491109]
[1719179426317,0.03719272,63918.0,63917.0,1.14491109]
[1719179427250,0.03709319,63918.0,63917.0,1.14491109]
[1719179428234,0.03709319,63918.0,63917.0,0.53544497]
[1719179429257,0.0840569,63918.0,63917.0,0.53544497]
[1719179430227,0.06074436,63918.0,63917.0,0.53544497]
[1719179430438,0.08432441,63918.0,63917.0,0.53544497]
[1719179433242,0.08436273,63918.0,63917.0,0.53544497]
[1719179434263,0.03739347,63918.0,63917.0,0.53544497]
[1719179434706,0.08436488,63918.0,63917.0,0.53544497]
[1719179435533,0.03739347,63918.0,63917.0,0.53544497]
[1719179436372,0.01377818,63918.0,63917.0,0.53544497]
[1719179436551,0.03754334,63918.0,63917.0,0.53544497]
[1719179439452,0.02640604,63918.0,63917.0,0.53544497]
[1719179439666,0.03733512,63918.0,63917.0,0.53544497]
[1719179441135,0.03733512,63918.0,63917.0,0.83144497]
[1719179441336,0.02640604,63918.0,63917.0,0.83144497]
[1719179441478,0.02640604,63918.0,63917.0,1.14434997]
[1719179441884,0.02640604,63918.0,63917.0,0.83144497]
[1719179442330,0.02640604,63918.0,63917.0,1.14434997]
[1719179442535,0.02632314,63918.0,63917.0,1.14434997]
[1719179442932,0.02644321,63918.0,63917.0,1.14434997]
[1719179445736,0.0263862,63918.0,63917.0,1.14434997]
[1719179446680,0.0263862,63918.0,63917.0,1.14528497]
[1719179446888,0.0263862,63918.0,63917.0,0.84928497]
[1719179447095,0.0263862,63918.0,63917.0,1.38224609]
[1719179448682,0.02620701,63918.0,63917.0,1.38224609]
[1719179450822,0.03713816,63918.0,63917.0,1.39224609]
[1719179451553,0.02620701,63918.0,63917.0,1.39224609]
[1719179451923,0.02595605,63918.0,63917.0,1.39224609]
[1719179452324,0.02595605,63918.0,63917.0,1.38224609]
[1719179452325,0.00285,63918.0,63917.0,1.38224609]
[1719179452529,0.00285,63918.0,63917.0,1.39224609]
[1719179452851,0.00285,63918.0,63917.0,1.38224609]
[1719179453052,0.02595605,63918.0,63917.0,1.38224609]
[1719179453411,0.02595605,63918.0,63917.0,1.39224609]
[1719179453810,0.02595605,63918.0,63917.0,1.38224609]
[1719179454936,0.02611295,63918.0,63917.0,1.36224609]
[1719179455127,0.02611295,63918.0,63917.0,1.38224609]
[1719179458010,0.02618704,63918.0,63917.0,1.38224609]
[1719179460807,0.02618906,63918.0,63917.0,1.38224609]
[1719179461379,0.0261997,63918.0,63917.0,1.38224609]
[1719179461614,0.03713472,63918.0,63917.0,1.38224609]
[1719179461813,0.03713472,63918.0,63917.0,1.36224609]
[1719179462020,0.0261997,63918.0,63917.0,1.36224609]
[1719179462676,0.00285,63918.0,63917.0,1.36224609]
[1719179462844,0.00285,63918.0,63917.0,1.38224609]
[1719179463069,0.0262005,63918.0,63917.0,1.38224609]
[1719179463479,0.00285,63918.0,63917.0,1.38224609]
[1719179463687,0.02621665,63918.0,63917.0,1.38224609]
[1719179466198,0.03715167,63918.0,63917.0,1.38224609]
[1719179466571,0.03717723,63918.0,63917.0,1.38224609]
[1719179467575,0.08415972,63918.0,63917.0,1.38224609]
[1719179467776,0.03717723,63918.0,63917.0,1.38224609]
[1719179468899,0.03717723,63918.0,63917.0,1.36224609]
[1719179469726,0.01378502,63918.0,63917.0,1.38224609]
[1719179469938,0.00285,63918.0,63917.0,1.38224609]
[1719179470472,0.02626004,63918.0,63917.0,1.38224609]
[1719179470674,0.02626004,63918.0,63917.0,1.06934109]
[1719179471463,0.02627871,63918.0,63917.0,1.06934109]
[1719179471664,0.01378062,63918.0,63917.0,1.06934109]
[1719179472480,0.03720933,63918.0,63917.0,1.06934109]
[1719179474899,0.03720073,63918.0,63917.0,1.06934109]
[1719179476582,0.03729716,63918.0,63917.0,1.06934109]
[1719179477207,0.08428125,63918.0,63917.0,1.06934109]
[1719179477519,0.03729716,63918.0,63917.0,1.06934109]
[1719179478635,0.08428125,63918.0,63917.0,1.06934109]
[1719179479580,0.03729716,63918.0,63917.0,1.06934109]
[1719179479783,0.07335507,63918.0,63917.0,1.06934109]
[1719179479983,0.08366525,63918.0,63917.0,1.06934109]
[1719179482657,0.06015401,63918.0,63917.0,1.06934109]
[1719179482852,0.08368164,63918.0,63917.0,1.06934109]
[1719179483063,0.01316018,63918.0,63917.0,1.06934109]
[1719179483256,0.06015401,63918.0,63917.0,1.06934109]
[1719179483453,0.07337146,63918.0,63917.0,1.06934109]
[1719179483664,0.08368164,63918.0,63917.0,1.06934109]
[1719179484487,0.08368385,63918.0,63917.0,1.06934109]
[1719179485771,0.03668781,63918.0,63917.0,1.06934109]
[1719179485982,0.07336712,63918.0,63917.0,1.06934109]
[1719179486186,0.08380323,63918.0,63917.0,1.06934109]
[1719179487428,0.08380323,63918.0,63917.0,1.38224609]
[1719179488174,0.07336712,63918.0,63917.0,1.38224609]
[1719179488968,0.08372686,63918.0,63917.0,1.38224609]
[1719179489172,0.03673051,63918.0,63917.0,1.38224609]
[1719179489547,0.07329075,63918.0,63917.0,1.38224609]
[1719179491957,0.00285,63918.0,63917.0,1.38224609]
[1719179492161,0.07338398,63918.0,63917.0,1.38224609]
[1719179492415,0.07338418,63918.0,63917.0,1.38224609]
[1719179492541,0.0602814,63918.0,63917.0,1.38224609]
[1719179492749,0.0839572,63918.0,63917.0,1.38224609]
[1719179492949,0.07352109,63918.0,63917.0,1.38224609]
[1719179493172,0.0839572,63918.0,63917.0,1.38224609]
[1719179495199,0.03686145,63918.0,63917.0,1.38224609]
[1719179495554,0.08385849,63918.0,63917.0,1.38224609]
[1719179495711,0.07342238,63918.0,63917.0,1.38224609]
[1719179495922,0.08385849,63918.0,63917.0,1.38224609]
[1719179496638,0.03686145,63918.0,63917.0,1.38224609]
[1719179498185,0.03686152,63918.0,63917.0,1.38224609]
[1719179499191,0.02642541,63918.0,63917.0,1.38224609]
[1719179499971,0.03685739,63918.0,63917.0,1.38224609]
[1719179501281,0.156435,63924.0,63923.0,0.02308797]
[1719179501488,0.21602894,63924.0,63923.0,0.04308797]
[1719179501664,0.45780546,63924.0,63923.0,0.04308797]
[1719179501869,0.45272947,63924.0,63923.0,0.04308797]
[1719179502839,0.45272947,63924.0,63923.0,0.04708797]
[1719179503220,1.07847147,63924.0,63923.0,0.004]
[1719179503544,1.39134247,63924.0,63923.0,0.008]
[1719179504435,1.313248,63924.0,63923.0,0.008]
[1719179504770,1.39197161,63924.0,63923.0,0.008]
[1719179505549,1.39197161,63924.0,63923.0,0.004]
[1719179505550,1.5329488,63924.0,63923.0,0.004]
[1719179506436,1.00045,63918.0,63917.0,0.000935]
[1719179506591,1.24943577,63918.0,63917.0,0.000935]
[1719179507527,1.1926307,63918.0,63917.0,0.000935]
[1719179508031,1.1936307,63918.0,63917.0,0.008935]
[1719179508548,1.07616854,63918.0,63917.0,0.008935]
[1719179508766,1.07716854,63918.0,63917.0,0.016935]
[1719179509018,1.08677558,63918.0,63917.0,0.016935]
[1719179509244,1.08577558,63918.0,63917.0,0.008935]
[1719179509472,1.08477558,63918.0,63917.0,0.004935]
[1719179509958,1.08477558,63918.0,63917.0,0.008935]
[1719179510675,1.06285704,63918.0,63917.0,0.008935]
[1719179510910,1.08481098,63918.0,63917.0,0.008935]
[1719179511155,1.06285704,63918.0,63917.0,0.008935]
[1719179511392,1.08481098,63918.0,63917.0,0.008935]
[1719179511892,1.26032414,63918.0,63917.0,0.008935]
[1719179512365,1.57322414,63918.0,63917.0,0.008935]
[1719179514131,1.57359699,63918.0,63917.0,0.008935]
[1719179514353,1.45621127,63918.0,63917.0,0.008935]
[1719179514603,1.57358504,63918.0,63917.0,0.008935]
[1719179515072,1.45621127,63918.0,63917.0,0.004935]
[1719179515332,1.45621127,63918.0,63917.0,0.007935]
[1719179515996,1.45621127,63918.0,63917.0,0.003935]
[1719179516285,1.45621127,63918.0,63917.0,0.005935]
[1719179516495,1.45621127,63918.0,63917.0,0.002935]
[1719179516729,1.45621127,63918.0,63917.0,0.000935]
[1719179518477,1.57354453,63918.0,63917.0,0.000935]
[1719179519997,1.37575704,63918.0,63917.0,0.000935]
[1719179520202,1.57304038,63918.0,63917.0,0.000935]
[1719179520612,1.57303916,63918.0,63917.0,0.000935]
[1719179521190,1.32295704,63918.0,63917.0,0.000935]
[1719179521389,1.57314732,63918.0,63917.0,0.000935]
[1719179521793,1.57347997,63918.0,63917.0,0.000935]
[1719179522379,1.45615639,63918.0,63917.0,0.000935]
[1719179522587,1.57347379,63918.0,63917.0,0.000935]
[1719179524444,1.52067379,63918.0,63917.0,0.000935]
[1719179524646,1.57347379,63918.0,63917.0,0.000935]
[1719179525735,1.49305724,63918.0,63917.0,0.000935]
[1719179525943,1.57414636,63918.0,63917.0,0.000935]
[1719179527230,1.45684616,63918.0,63917.0,0.000935]
[1719179528822,1.37575704,63918.0,63917.0,0.000935]
[1719179529001,1.45702318,63918.0,63917.0,0.000935]
[1719179529376,1.45702347,63918.0,63917.0,0.000935]
[1719179531901,1.37575704,63918.0,63917.0,0.000935]
[1719179532101,1.45709718,63918.0,63917.0,0.000935]
[1719179533688,1.46209718,63918.0,63917.0,0.000935]
[1719179534431,1.38075704,63918.0,63917.0,0.000935]
[1719179534613,1.57942022,63918.0,63917.0,0.000935]
[1719179535179,1.57967054,63918.0,63917.0,0.000935]
[1719179538218,1.38075704,63918.0,63917.0,0.000935]
[1719179538428,1.57966574,63918.0,63917.0,0.000935]
[1719179538846,1.57967098,63918.0,63917.0,0.000935]
[1719179541406,1.38075704,63918.0,63917.0,0.000935]
[1719179541656,1.46248342,63918.0,63917.0,0.000935]
[1719179542332,1.24428342,63918.0,63917.0,0.000935]
[1719179542741,1.38648342,63918.0,63917.0,0.000935]
[1719179544518,1.38657034,63918.0,63917.0,0.000935]
[1719179544737,1.38657059,63918.0,63917.0,0.000935]
[1719179544924,1.94614171,63918.0,63917.0,0.000935]
[1719179545137,2.32880788,63918.0,63917.0,0.000935]
[1719179545289,2.38160788,63918.0,63917.0,0.000935]
[1719179546142,2.22905374,63918.0,63917.0,0.000935]
[1719179547542,2.14724019,63918.0,63917.0,0.000935]
[1719179547743,2.23016922,63918.0,63917.0,0.000935]
[1719179548071,2.14724019,63918.0,63917.0,0.000935]
[1719179548276,2.33021436,63918.0,63917.0,0.000935]
[1719179549313,2.32964699,63918.0,63917.0,0.000935]
[1719179550771,2.32947715,63918.0,63917.0,0.000935]
[1719179553847,2.32931928,63918.0,63917.0,0.000935]
[1719179554872,0.782472,63900.0,63899.0,0.07764518]
[1719179555076,0.782472,63900.0,63896.0,0.02308797]
[1719179555077,0.156501,63897.0,63896.0,0.02308797]
[1719179555299,0.23231193,63897.0,63896.0,0.29708797]
[1719179555483,0.30272207,63897.0,63896.0,0.29708797]
[1719179555715,0.31229381,63897.0,63896.0,0.29708797]
[1719179556138,0.62529681,63897.0,63896.0,0.29708797]
[1719179556347,0.86788967,63897.0,63896.0,0.274]
[1719179556547,0.93929981,63897.0,63896.0,0.288]
[1719179556760,0.93928805,63897.0,63896.0,0.288]
[1719179556967,0.91627721,63897.0,63896.0,0.288]
[1719179557142,0.94018097,63897.0,63896.0,0.288]
[1719179557622,0.94031528,63897.0,63896.0,0.288]
[1719179558057,1.25431828,63897.0,63896.0,0.302]
[1719179558255,1.18393594,63897.0,63896.0,0.302]
[1719179558742,1.18393594,63897.0,63896.0,0.1753]
[1719179558943,1.25430482,63897.0,63896.0,0.1753]
[1719179559159,1.18393594,63897.0,63896.0,0.1753]
[1719179559586,1.25430482,63897.0,63896.0,0.1753]
[1719179559996,1.18393594,63897.0,63896.0,0.1753]
[1719179560214,1.18405863,63897.0,63896.0,0.1753]
[1719179560910,1.20161489,63897.0,63896.0,0.1753]
[1719179561124,1.24430742,63897.0,63896.0,0.1753]
[1719179561333,1.40710603,63897.0,63896.0,0.028]
[1719179561539,1.54450742,63897.0,63896.0,0.028]
[1719179561748,1.47260742,63897.0,63896.0,0.028]
[1719179561952,1.34430742,63897.0,63896.0,0.028]
[1719179562155,1.29150742,63897.0,63896.0,0.028]
[1719179562360,1.29150742,63897.0,63896.0,0.014]
[1719179562361,1.34330742,63897.0,63896.0,0.014]
[1719179562995,1.34330742,63897.0,63896.0,0.025]
[1719179562996,1.25988174,63897.0,63896.0,0.025]
[1719179563212,1.45931962,63897.0,63896.0,0.025]
[1719179563454,1.45831962,63897.0,63896.0,0.011]
[1719179563666,1.45931962,63897.0,63896.0,0.021]
[1719179564131,1.40651962,63897.0,63896.0,0.021]
[1719179564377,1.34216861,63897.0,63896.0,0.021]
[1719179565077,1.45931962,63897.0,63896.0,0.021]
[1719179565275,1.34216861,63897.0,63896.0,0.021]
[1719179566066,1.25988174,63897.0,63896.0,0.021]
[1719179566266,2.10216845,63897.0,63896.0,0.021]
[1719179566469,1.89584586,63897.0,63896.0,0.021]
[1719179566672,2.0312055,63897.0,63896.0,0.021]
[1719179567706,2.30222753,63897.0,63896.0,0.021]
[1719179567906,2.50222753,63897.0,63896.0,0.021]
[1719179568375,2.30222753,63897.0,63896.0,0.021]
[1719179568759,2.30122753,63897.0,63896.0,0.01]
[1719179569177,2.31325929,63897.0,63896.0,0.011]
[1719179569557,2.31225929,63897.0,63896.0,0.001]
[1719179570026,2.32425929,63897.0,63896.0,0.002]
[1719179572268,2.32459269,63897.0,63896.0,0.002]
[1719179572506,2.52459269,63897.0,63896.0,0.002]
[1719179573129,2.64152579,63897.0,63896.0,0.002]
[1719179573871,2.44152579,63897.0,63896.0,0.002]
[1719179574620,2.64152579,63897.0,63896.0,0.002]
[1719179575252,2.52459269,63897.0,63896.0,0.002935]
[1719179575813,2.52198181,63897.0,63896.0,0.002935]
[1719179576228,2.61550525,63897.0,63896.0,0.002935]
[1719179576640,2.72850825,63897.0,63896.0,0.002935]
[1719179576959,2.72850825,63897.0,63884.0,0.2813]
[1719179576960,1.095717,63885.0,63884.0,0.2813]
[1719179577165,1.4456653,63885.0,63884.0,0.2813]
[1719179577334,1.45517629,63885.0,63884.0,0.2813]
[1719179578259,1.45517629,63885.0,63884.0,0.2873]
[1719179578462,1.45384837,63885.0,63884.0,0.2873]
[1719179579623,1.45384837,63885.0,63884.0,0.2843]
[1719179579836,1.45384837,63885.0,63884.0,0.2813]
[1719179580044,1.45384837,63885.0,63884.0,0.2833]
[1719179580882,1.45384837,63885.0,63884.0,0.2823]
[1719179581087,1.45333009,63885.0,63884.0,0.2823]
[1719179581288,1.46533009,63885.0,63884.0,0.2823]
[1719179581401,1.22744629,63885.0,63884.0,0.2813]
[1719179581605,1.23844629,63885.0,63884.0,0.2823]
[1719179581816,1.34217729,63885.0,63884.0,0.2823]
[1719179582128,1.39497729,63885.0,63884.0,0.2823]
[1719179582967,1.40697729,63885.0,63884.0,0.2833]
[1719179583138,1.45218602,63885.0,63884.0,0.2823]
[1719179583372,1.44018602,63885.0,63884.0,0.1535]
[1719179583580,1.45018602,63885.0,63884.0,0.1535]
[1719179583779,1.45025302,63885.0,63884.0,0.1535]
[1719179584143,1.44755675,63885.0,63884.0,0.1535]
[1719179584347,1.44255675,63885.0,63884.0,0.1535]
[1719179584680,1.44955675,63885.0,63884.0,0.1545]
[1719179585211,1.44955675,63885.0,63884.0,0.2715]
[1719179586435,1.44255675,63885.0,63884.0,0.2705]
[1719179586848,1.37153968,63885.0,63884.0,0.2705]
[1719179587061,1.44758213,63885.0,63884.0,0.2705]
[1719179587267,1.44758213,63885.0,63880.0,0.000935]
[1719179587268,0.782705,63881.0,63880.0,0.000935]
[1719179587507,0.86071475,63881.0,63880.0,0.000935]
[1719179587713,0.86071475,63881.0,63880.0,0.165935]
[1719179587714,1.17379675,63881.0,63880.0,0.165935]
[1719179587920,1.27379675,63881.0,63880.0,0.165935]
[1719179588276,1.32989632,63881.0,63880.0,0.165935]
[1719179591218,1.32989632,63881.0,63880.0,0.000935]
[1719179591727,1.33189632,63881.0,63880.0,0.000935]
[1719179592227,1.31605704,63881.0,63880.0,0.000935]
[1719179592592,2.40207716,63881.0,63880.0,0.000935]
[1719179592805,2.58880419,63881.0,63880.0,0.000935]
[1719179593220,2.58689504,63881.0,63880.0,0.000935]
[1719179593421,2.6337166,63881.0,63880.0,0.000935]
[1719179593532,2.32179408,63881.0,63880.0,0.001935]
[1719179593739,2.44560804,63881.0,63880.0,0.001935]
[1719179593939,2.43460804,63881.0,63880.0,0.000935]
[1719179594336,2.66260804,63881.0,63880.0,0.002935]
[1719179594540,2.53879408,63881.0,63880.0,0.002935]
[1719179594745,2.66267128,63881.0,63880.0,0.002935]
[1719179594965,2.68608425,63881.0,63880.0,0.002935]
[1719179595195,2.70949722,63881.0,63880.0,0.002935]
[1719179596401,2.61655239,63881.0,63880.0,0.002935]
[1719179598106,2.73364043,63881.0,63880.0,0.002935]
[1719179599138,2.61655239,63881.0,63880.0,0.002935]
[1719179599462,2.61644929,63881.0,63880.0,0.002935]
[1719179602595,2.55923386,63881.0,63880.0,0.002935]
[1719179602792,2.64384537,63881.0,63880.0,0.002935]
[1719179603000,2.64379956,63881.0,63880.0,0.002935]